bitfinex-derivatives/quotes_BTCF0:USTF0_20250902
["timestamp","ask_amount","ask_price","bid_price","bid_amount"]
[1756818325642,2.39600318,109000.0,108990.0,1.28446]
[1756818325643,0.75912,109000.0,108990.0,1.28446]
[1756818325842,0.363,109000.0,108990.0,1.28446]
[1756818326045,0.363,109000.0,108990.0,2.17934]
[1756818326245,0.87571318,109000.0,108990.0,2.17934]
[1756818326437,1.23651318,109000.0,108990.0,2.17934]
[1756818326737,0.7238,109000.0,108990.0,2.17934]
[1756818326939,0.122,109000.0,108990.0,3.34753318]
[1756818327140,0.102,109000.0,108990.0,3.43927218]
[1756818327534,0.102,109000.0,108990.0,2.961879]
[1756818327732,0.1,109000.0,108990.0,3.43927218]
[1756818327932,0.101,109000.0,108990.0,3.43927218]
[1756818328137,0.101,109000.0,108990.0,3.34753318]
[1756818328640,0.101,109000.0,108990.0,2.45265318]
[1756818328944,0.1,109000.0,108990.0,3.34733318]
[1756818329140,0.1,109000.0,108990.0,3.34829318]
[1756818329335,0.1,109000.0,108990.0,3.37825318]
[1756818329940,0.10140894,109000.0,108990.0,3.37825318]
[1756818330136,0.10140894,109000.0,108990.0,3.38025318]
[1756818330544,0.10140894,109000.0,108990.0,3.37825318]
[1756818330844,0.10140894,109000.0,108990.0,3.38025318]
[1756818331242,0.10140894,109000.0,108990.0,2.48565318]
[1756818331438,0.10140894,109000.0,108990.0,3.39009318]
[1756818331834,0.10140894,109000.0,108990.0,1.39826]
[1756818332038,0.10140894,109000.0,108990.0,2.2927]
[1756818332442,0.13772894,109000.0,108990.0,1.9319]
[1756818332647,0.10240894,109000.0,108990.0,3.09009318]
[1756818332848,0.10140894,109000.0,108990.0,3.09009318]
[1756818333045,0.10140894,109000.0,108990.0,3.11009318]
[1756818333345,0.10240894,109000.0,108990.0,1.93178]
[1756818333547,0.10140894,109000.0,108990.0,3.32997318]
[1756818333842,0.10140894,109000.0,108990.0,3.42171208]
[1756818334145,0.00140894,109000.0,108990.0,3.42171208]
[1756818334443,0.36984236,109050.0,109040.0,0.08188]
[1756818334648,0.36984236,109050.0,109040.0,1.33688]
[1756818334649,0.40836236,109050.0,109040.0,1.33688]
[1756818334841,0.40936236,109050.0,109040.0,1.33688]
[1756818335042,0.341,109050.0,109040.0,1.81427318]
[1756818335240,0.34,109050.0,109040.0,2.17427318]
[1756818335449,0.39612,109070.0,109040.0,2.14981318]
[1756818335751,0.0843,109060.0,109050.0,0.40822]
[1756818336042,0.4643,109060.0,109050.0,0.44268]
[1756818336248,0.381,109060.0,109050.0,0.44268]
[1756818336652,0.02413,109060.0,109050.0,0.44268]
[1756818337647,0.08304,109060.0,109050.0,0.44268]
[1756818338448,0.08604,109060.0,109050.0,0.44268]
[1756818339652,0.05115,109060.0,109050.0,0.44268]
[1756818340151,0.08604,109060.0,109050.0,0.44268]
[1756818341046,0.05115,109060.0,109050.0,0.44268]
[1756818341354,0.004,109060.0,109050.0,1.81367318]
[1756818341545,0.003,109060.0,109050.0,1.81367318]
[1756818341845,0.003,109060.0,109050.0,2.14762318]
[1756818342256,0.003,109060.0,109050.0,2.39762318]
[1756818342746,0.003,109060.0,109050.0,2.48931168]
[1756818342950,0.003,109060.0,109050.0,2.48919168]
[1756818343951,0.003,109060.0,109050.0,1.50502318]
[1756818344146,0.003,109060.0,109050.0,2.49011168]
[1756818345154,0.08204,109090.0,109080.0,0.08376]
[1756818345349,0.36204,109090.0,109080.0,0.44456]
[1756818345554,0.36304,109090.0,109080.0,0.44456]
[1756818346554,0.36504,109090.0,109080.0,1.33784]
[1756818346952,0.36504,109090.0,109080.0,0.44456]
[1756818347256,0.36504,109090.0,109080.0,1.33776]
[1756818347456,0.33015,109090.0,109080.0,0.44456]
[1756818348054,0.36504,109090.0,109080.0,0.44456]
[1756818348266,0.36504,109090.0,109080.0,1.33772]
[1756818348454,0.33015,109090.0,109080.0,1.33772]
[1756818349058,0.36504,109090.0,109080.0,1.33772]
[1756818349256,0.283,109090.0,109080.0,1.33772]
[1756818349560,0.002,109090.0,109080.0,1.9893832]
[1756818349760,0.002,109090.0,109080.0,2.94416956]
[1756818350055,0.002,109090.0,109080.0,2.46677638]
[1756818350556,0.002,109090.0,109080.0,2.94416956]
[1756818351456,0.002,109090.0,109080.0,2.05100956]
[1756818351657,0.002,109090.0,109080.0,2.94396956]
[1756818352263,0.002,109090.0,109080.0,2.05100956]
[1756818352460,0.002,109090.0,109080.0,2.94388956]
[1756818353461,0.002,109090.0,109080.0,2.95314002]
[1756818353767,0.002,109090.0,109080.0,2.06030002]
[1756818355564,0.002,109090.0,109080.0,1.58290694]
[1756818356268,0.002,109090.0,109080.0,2.06030012]
[1756818356768,0.002,109090.0,109080.0,3.06030012]
[1756818356971,0.002,109090.0,109080.0,2.21124364]
[1756818357165,0.003,109090.0,109080.0,1.93195318]
[1756818357364,0.003,109090.0,109080.0,1.92195318]
[1756818357961,0.253,109090.0,109080.0,1.44456]
[1756818358166,0.28789,109090.0,109080.0,1.44456]
[1756818358362,0.253,109090.0,109080.0,2.28195318]
[1756818358758,0.28789,109090.0,109080.0,1.40992]
[1756818359159,0.03789,109090.0,109080.0,1.44456]
[1756818359559,0.253,109090.0,109080.0,1.44456]
[1756818359763,0.28789,109090.0,109080.0,1.3608]
[1756818359964,1.21223318,109090.0,109080.0,0.999]
[1756818360160,1.55260129,109090.0,109080.0,0.999]
[1756818360768,0.09681,109050.0,109040.0,0.01866557]
[1756818361070,0.03489,109040.0,109030.0,0.3608]
[1756818361268,0.09204,109040.0,109030.0,0.44456]
[1756818361668,0.01,109040.0,109030.0,1.42187318]
[1756818362171,0.09204,109040.0,109030.0,0.94448]
[1756818362358,0.09204,109040.0,109030.0,0.44456]
[1756818362565,0.08204,109030.0,109020.0,0.3851]
[1756818362867,0.08204,109030.0,109020.0,0.88502]
[1756818363067,0.04405565,109050.0,109020.0,1.3315537]
[1756818363373,0.04405565,109050.0,109040.0,1.78267318]
[1756818363374,0.04,109050.0,109040.0,1.78267318]
[1756818363571,0.02063583,109080.0,109040.0,2.24437008]
[1756818363768,0.46267583,109080.0,109070.0,0.08376]
[1756818364079,0.46267583,109080.0,109070.0,0.44456]
[1756818364271,0.26267583,109080.0,109070.0,0.44456]
[1756818364575,0.26267583,109080.0,109070.0,0.3851]
[1756818365160,0.26267583,109080.0,109070.0,0.40992]
[1756818365365,0.22778583,109080.0,109070.0,0.44456]
[1756818365570,0.22778583,109080.0,109070.0,0.94448]
[1756818366071,0.22878583,109080.0,109070.0,0.94448]
[1756818366268,0.22978583,109080.0,109070.0,0.94448]
[1756818366669,0.26702583,109080.0,109070.0,0.94448]
[1756818366967,0.26602583,109080.0,109070.0,0.94448]
[1756818368071,0.161,109080.0,109070.0,1.79187318]
[1756818368384,0.161,109080.0,109070.0,2.13354488]
[1756818368576,0.161,109080.0,109070.0,2.04187318]
[1756818369175,0.161,109080.0,109070.0,2.13354488]
[1756818369370,0.001,109080.0,109070.0,2.13354488]
[1756818369579,0.001,109080.0,109070.0,1.6561517]
[1756818369778,0.04803,109110.0,109100.0,0.02497]
[1756818369976,0.39527,109110.0,109100.0,0.38577]
[1756818370477,0.39527,109110.0,109100.0,0.44405]
[1756818370973,0.87266318,109110.0,109100.0,0.3608]
[1756818371279,0.87266318,109110.0,109080.0,0.51146318]
[1756818371280,0.03724,109100.0,109090.0,0.44405]
[1756818371470,0.44527,109100.0,109090.0,0.94397]
[1756818372768,0.44527,109100.0,109090.0,0.58317]
[1756818373167,0.40803,109100.0,109090.0,0.94397]
[1756818373574,0.44627,109100.0,109090.0,0.94401]
[1756818374174,0.41003,109100.0,109090.0,0.94401]
[1756818374570,0.3869,109100.0,109090.0,1.42140318]
[1756818374767,0.3869,109100.0,109090.0,0.94401]
[1756818375369,0.362,109100.0,109090.0,1.79140318]
[1756818375568,0.102,109100.0,109090.0,1.88305808]
[1756818375768,0.102,109100.0,109090.0,1.79140318]
[1756818375972,0.102,109100.0,109090.0,2.04140318]
[1756818376170,0.101,109100.0,109090.0,2.04140318]
[1756818376366,0.1,109100.0,109090.0,1.67140318]
[1756818376571,0.1,109100.0,109090.0,2.04140318]
[1756818376880,0.1,109100.0,109090.0,1.99140318]
[1756818377679,0.1,109100.0,109090.0,1.98733152]
[1756818378973,0.18527,109100.0,109090.0,0.94401]
[1756818379269,0.19375167,109100.0,109090.0,0.94401]
[1756818379478,0.15651167,109100.0,109090.0,0.94401]
[1756818379878,0.19375167,109100.0,109090.0,0.94401]
[1756818380679,0.10848167,109100.0,109090.0,1.28401]
[1756818380869,0.10848167,109100.0,109090.0,1.75733152]
[1756818381074,0.10848167,109100.0,109090.0,1.84898642]
[1756818381288,0.00848167,109100.0,109090.0,1.84898642]
[1756818383283,0.00848167,109100.0,109090.0,2.09898642]
[1756818383879,0.03724,109140.0,109120.0,0.04918]
[1756818384078,0.38,109140.0,109130.0,0.44405]
[1756818384279,0.4049,109140.0,109130.0,0.44405]
[1756818384682,0.42803,109140.0,109130.0,0.44405]
[1756818385081,0.46527,109140.0,109130.0,0.44405]
[1756818385979,0.46527,109140.0,109130.0,0.02497]
[1756818386178,0.08527,109130.0,109120.0,0.02497]
[1756818386478,0.08527,109120.0,109110.0,0.46227395]
[1756818386677,0.08527,109120.0,109110.0,0.87652621]
[1756818387183,0.08527,109120.0,109110.0,0.93480621]
[1756818387983,0.003,109130.0,109120.0,0.08325]
[1756818388176,0.08827,109130.0,109120.0,0.44405]
[1756818388377,0.08527,109130.0,109120.0,0.91658226]
[1756818388974,0.04803,109130.0,109120.0,0.91658226]
[1756818389175,0.12299619,109150.0,109140.0,0.04918]
[1756818389375,0.48299619,109150.0,109140.0,0.08325]
[1756818389677,0.47362581,109150.0,109140.0,0.08325]
[1756818391177,0.47362581,109150.0,109140.0,0.02497]
[1756818391178,0.48744581,109150.0,109140.0,0.02497]
[1756818391378,0.49144581,109150.0,109130.0,0.39487]
[1756818391686,0.08527,109140.0,109130.0,0.91658226]
[1756818391877,0.40527,109140.0,109130.0,0.91658226]
[1756818392278,0.32,109140.0,109130.0,0.91658226]
[1756818392685,0.08,109140.0,109130.0,0.88251226]
[1756818392886,0.08,109140.0,109130.0,0.91658226]
[1756818393690,0.08,109140.0,109130.0,1.38990378]
[1756818394194,0.08,109140.0,109130.0,1.63990378]
[1756818394687,0.084,109140.0,109130.0,1.16658226]
[1756818396190,0.084,109140.0,109130.0,1.18499651]
[1756818399589,0.13232,109140.0,109130.0,0.93499651]
[1756818400392,0.084,109140.0,109130.0,0.93499651]
[1756818401791,0.13232,109140.0,109130.0,0.93499651]
[1756818402701,0.10769,109140.0,109130.0,0.93499651]
[1756818403093,0.084,109140.0,109130.0,0.93499651]
[1756818403398,0.10769,109140.0,109130.0,0.93499651]
[1756818403602,0.084,109140.0,109130.0,0.93499651]
[1756818403990,0.13232,109140.0,109130.0,0.93499651]
[1756818404196,0.16734,109140.0,109130.0,0.93499651]
[1756818405100,0.64066152,109140.0,109130.0,0.93499651]
[1756818405601,1.00146152,109140.0,109130.0,0.01841425]
[1756818406301,1.00146152,109140.0,109130.0,0.09844425]
[1756818406894,0.92495802,109140.0,109130.0,0.09844425]
[1756818407088,0.67415802,109140.0,109130.0,0.09844425]
[1756818407295,0.2008365,109140.0,109130.0,0.45924425]
[1756818407498,0.1174965,109140.0,109130.0,0.93177651]
[1756818408604,0.1174965,109140.0,109130.0,1.40509803]
[1756818408795,0.1174965,109140.0,109130.0,1.98509803]
[1756818409302,0.1224965,109140.0,109130.0,1.65509803]
[1756818409495,0.1224965,109140.0,109130.0,1.18177651]
[1756818410002,0.1575165,109140.0,109130.0,1.18177651]
[1756818410403,0.1224965,109140.0,109130.0,1.18177651]
[1756818410903,0.2058365,109140.0,109130.0,0.93177651]
[1756818411606,0.1708165,109140.0,109130.0,0.93177651]
[1756818411805,0.1461865,109140.0,109130.0,0.93177651]
[1756818412193,0.2058365,109140.0,109130.0,0.93177651]
[1756818413307,0.1708165,109140.0,109130.0,0.93177651]
[1756818414308,0.17549415,109140.0,109130.0,0.93177651]
[1756818414506,0.21051415,109140.0,109130.0,0.93177651]
[1756818419200,0.21051415,109140.0,109130.0,0.45924425]
[1756818420596,0.12717415,109140.0,109130.0,0.45924425]
[1756818420796,0.01717415,109140.0,109130.0,2.11671943]
[1756818420999,0.01717415,109140.0,109130.0,2.02509803]
[1756818421197,0.01717415,109140.0,109130.0,1.26404393]
[1756818421799,0.01717415,109140.0,109130.0,1.26862393]
[1756818424311,0.01717415,109140.0,109130.0,1.64862393]
[1756818424712,0.01717415,109140.0,109130.0,1.26862393]
[1756818425409,0.01317415,109140.0,109130.0,1.63862393]
[1756818425709,0.01317415,109140.0,109130.0,1.26862393]
[1756818425910,0.01317415,109140.0,109130.0,1.18635651]
[1756818426207,0.01317415,109140.0,109130.0,2.08061619]
[1756818427109,0.39792,109190.0,109170.0,0.03669]
[1756818427309,0.41453949,109190.0,109180.0,0.44737]
[1756818427503,0.41453949,109190.0,109180.0,0.08657]
[1756818427909,0.41453949,109190.0,109170.0,0.52969836]
[1756818427910,0.0841,109180.0,109170.0,0.52969836]
[1756818428111,0.86742152,109180.0,109170.0,0.13220836]
[1756818428310,0.87650183,109180.0,109170.0,0.08657]
[1756818428507,0.40318031,109180.0,109170.0,0.08657]
[1756818429712,0.40318031,109180.0,109170.0,0.44737]
[1756818430118,0.40618031,109180.0,109170.0,0.44737]
[1756818430320,0.40618031,109180.0,109170.0,0.83887852]
[1756818431110,0.40618031,109180.0,109170.0,0.47807852]
[1756818431913,0.40618031,109180.0,109170.0,0.04988]
[1756818432517,0.40518031,109180.0,109170.0,0.08657]
[1756818432709,0.40518031,109180.0,109170.0,0.44737]
[1756818432908,0.40518031,109180.0,109170.0,0.08657]
[1756818433321,0.35998,109180.0,109170.0,0.83887852]
[1756818433610,0.35998,109180.0,109170.0,0.47807852]
[1756818434015,0.35998,109180.0,109170.0,0.83887852]
[1756818434216,0.35998,109180.0,109170.0,2.01378814]
[1756818434217,0.003,109180.0,109170.0,2.01378814]
[1756818434722,0.003,109180.0,109170.0,1.56220004]
[1756818434915,0.003,109180.0,109170.0,1.65378814]
[1756818435219,0.003,109180.0,109170.0,1.56220004]
[1756818435813,0.003,109180.0,109170.0,1.08887852]
[1756818436312,0.04998,109180.0,109170.0,0.83887852]
[1756818436516,0.0871,109180.0,109170.0,0.83887852]
[1756818437119,0.04998,109180.0,109170.0,0.91078851]
[1756818437622,0.003,109180.0,109170.0,1.63667046]
[1756818437824,0.003,109180.0,109170.0,1.96667046]
[1756818438321,0.003,109180.0,109170.0,2.05825846]
[1756818440311,0.003,109180.0,109170.0,1.63667046]
[1756818440525,0.003,109180.0,109170.0,1.95667046]
[1756818440726,0.003,109180.0,109170.0,1.70667046]
[1756818441125,0.003,109180.0,109170.0,1.79825836]
[1756818442322,0.003,109180.0,109170.0,1.70667046]
[1756818443028,0.003,109180.0,109170.0,1.75667046]
[1756818443419,0.001,109180.0,109170.0,1.75667046]
[1756818444024,0.001,109180.0,109170.0,0.91078851]
[1756818444224,0.001,109180.0,109170.0,1.38667046]
[1756818445432,0.001,109180.0,109170.0,0.91078851]
[1756818445926,0.0851,109180.0,109170.0,0.91536851]
[1756818446430,0.04798,109180.0,109170.0,0.91536851]
[1756818446823,0.0851,109180.0,109170.0,0.91536851]
[1756818447024,0.001,109180.0,109170.0,0.91536851]
[1756818447223,0.001,109180.0,109170.0,1.72125046]
[1756818447428,0.001,109180.0,109170.0,1.81283866]
[1756818447630,0.001,109180.0,109170.0,2.06283866]
[1756818449034,0.001,109180.0,109170.0,1.97125046]
[1756818449235,0.001,109180.0,109170.0,1.18536851]
[1756818449420,0.001,109180.0,109170.0,1.73283866]
[1756818449625,0.001,109180.0,109170.0,2.11283866]
[1756818449825,0.001,109180.0,109170.0,0.91536851]
[1756818449826,0.0851,109180.0,109170.0,0.91536851]
[1756818450325,0.001,109180.0,109170.0,2.05283866]
[1756818450527,0.001,109180.0,109170.0,2.13516702]
[1756818450722,0.001,109180.0,109170.0,1.01596255]
[1756818450928,0.001,109180.0,109170.0,1.40951614]
[1756818451135,0.001,109180.0,109170.0,0.93363419]
[1756818451136,0.0851,109180.0,109170.0,0.93363419]
[1756818451328,0.02428,109180.0,109170.0,0.93363419]
[1756818451627,0.006,109180.0,109170.0,1.74951614]
[1756818452132,0.006,109180.0,109170.0,1.75951614]
[1756818454227,0.006,109180.0,109170.0,1.27363419]
[1756818454430,0.006,109180.0,109170.0,1.40951614]
[1756818454641,0.006,109180.0,109170.0,1.71951614]
[1756818454836,0.006,109180.0,109170.0,1.40951614]
[1756818455138,0.006,109180.0,109170.0,1.75951614]
[1756818458734,0.006,109180.0,109170.0,0.93363419]
[1756818459038,0.006,109180.0,109170.0,1.40951614]
[1756818459039,0.08814,109180.0,109170.0,1.40951614]
[1756818459735,0.05376,109180.0,109170.0,1.40951614]
[1756818460135,0.05376,109180.0,109170.0,1.4918445]
[1756818460531,0.08814,109180.0,109170.0,1.01596255]
[1756818460744,0.08814,109180.0,109170.0,0.93363419]
[1756818460945,0.08814,109180.0,109170.0,0.02284568]
[1756818460946,1.17482195,109180.0,109170.0,0.02284568]
[1756818461237,1.22482195,109180.0,109170.0,0.00458]
[1756818461432,1.54482195,109180.0,109170.0,0.00458]
[1756818461632,1.53482195,109180.0,109170.0,0.00458]
[1756818461834,1.49482195,109180.0,109170.0,0.00458]
[1756818462030,1.17482195,109180.0,109170.0,0.00458]
[1756818462235,1.53482195,109180.0,109170.0,0.00458]
[1756818462532,1.17482195,109180.0,109170.0,0.00458]
[1756818462728,1.53482195,109180.0,109170.0,0.00458]
[1756818462933,1.02894,109180.0,109170.0,0.00458]
[1756818463142,1.50482195,109180.0,109170.0,0.00458]
[1756818463348,1.02894,109180.0,109170.0,0.00458]
[1756818463550,1.50482195,109180.0,109170.0,0.00458]
[1756818464454,1.02894,109180.0,109170.0,0.00458]
[1756818464743,1.50482195,109180.0,109170.0,0.00458]
[1756818465449,1.02894,109180.0,109170.0,0.02865]
[1756818465642,1.50482195,109180.0,109170.0,0.00458]
[1756818466549,1.25482195,109180.0,109170.0,0.00458]
[1756818467849,0.77894,109180.0,109170.0,0.00458]
[1756818468044,1.25482195,109180.0,109170.0,0.00458]
[1756818471145,0.89402195,109180.0,109170.0,0.05363]
[1756818471346,1.25482195,109180.0,109170.0,0.05363]
[1756818471656,0.89402195,109180.0,109170.0,0.02865]
[1756818471841,0.77894,109180.0,109170.0,0.02865]
[1756818472043,0.41814,109180.0,109170.0,0.73102852]
[1756818472246,0.36031,109180.0,109170.0,1.64085145]
[1756818472446,0.39469,109180.0,109170.0,1.1649695]
[1756818473250,0.41814,109180.0,109170.0,0.39608852]
[1756818473457,0.89402195,109180.0,109170.0,0.39608852]
[1756818474046,1.25482195,109180.0,109170.0,0.39608852]
[1756818475454,1.25482195,109180.0,109170.0,0.42015852]
[1756818475656,0.77894,109180.0,109170.0,0.39608852]
[1756818475842,1.25482195,109180.0,109170.0,0.42015852]
[1756818476042,0.41814,109180.0,109170.0,0.48102852]
[1756818477053,0.41814,109180.0,109170.0,0.84182852]
[1756818477357,0.016,109180.0,109170.0,1.91771047]
[1756818477656,0.09814,109180.0,109170.0,0.84182852]
[1756818478260,0.09814,109180.0,109170.0,0.48102852]
[1756818478457,0.09814,109180.0,109170.0,0.84182852]
[1756818479149,0.09814,109180.0,109170.0,0.08952]
[1756818479759,0.09814,109180.0,109170.0,0.45032]
[1756818479949,0.09814,109180.0,109170.0,0.08952]
[1756818480257,0.09814,109180.0,109170.0,0.45032]
[1756818481653,0.47886451,109180.0,109170.0,0.83104451]
[1756818482156,0.47886451,109180.0,109170.0,0.47024451]
[1756818482355,1.18958902,109180.0,109170.0,0.39608852]
[1756818482552,0.84958902,109180.0,109170.0,0.39608852]
[1756818482753,0.85958902,109180.0,109170.0,0.39608852]
[1756818482954,0.85958902,109180.0,109170.0,0.42015852]
[1756818483253,1.22958902,109180.0,109170.0,0.44513852]
[1756818483457,1.59038902,109180.0,109170.0,0.48102852]
[1756818484372,1.59038902,109180.0,109170.0,0.44513852]
[1756818484559,1.59038902,109180.0,109170.0,0.42015852]
[1756818484757,1.22958902,109180.0,109170.0,0.39608852]
[1756818484958,0.46814,109180.0,109170.0,0.48102852]
[1756818485160,0.46814,109180.0,109170.0,0.86175303]
[1756818485366,0.46814,109180.0,109170.0,1.55255303]
[1756818485367,0.06376,109180.0,109170.0,1.55255303]
[1756818485559,0.016,109180.0,109170.0,1.55255303]
[1756818485760,0.016,109180.0,109170.0,1.63488139]
[1756818486172,0.016,109180.0,109170.0,2.3156059]
[1756818486365,0.316,109180.0,109170.0,1.94414123]
[1756818486570,0.016,109180.0,109170.0,2.02646959]
[1756818486971,0.016,109180.0,109170.0,1.89488139]
[1756818487371,0.016,109180.0,109170.0,1.17415688]
[1756818487571,0.016,109180.0,109170.0,1.99995157]
[1756818488377,0.016,109180.0,109170.0,1.99989077]
[1756818488580,0.016,109180.0,109170.0,1.64989077]
[1756818488881,0.016,109180.0,109170.0,2.03921141]
[1756818489079,0.016,109180.0,109170.0,1.09182852]
[1756818489382,0.016,109180.0,109170.0,2.06288292]
[1756818489586,0.016,109180.0,109170.0,2.15447112]
[1756818489772,0.016,109180.0,109170.0,2.22665233]
[1756818490184,0.016,109180.0,109170.0,1.77506413]
[1756818490384,0.016,109180.0,109170.0,2.08506413]
[1756818490780,0.016,109180.0,109170.0,1.75506413]
[1756818491285,0.016,109180.0,109170.0,1.27926944]
[1756818491782,0.016,109180.0,109170.0,1.02926944]
[1756818492175,0.016,109180.0,109170.0,0.92405988]
[1756818492176,0.05241,109180.0,109170.0,0.92405988]
[1756818492372,0.09959,109180.0,109170.0,0.56325988]
[1756818492584,0.09959,109180.0,109170.0,0.56325921]
[1756818493085,0.57538469,109180.0,109170.0,0.47831921]
[1756818493279,0.09959,109180.0,109170.0,0.08681069]
[1756818493480,0.57538469,109180.0,109170.0,0.00458]
[1756818493782,0.09959,109180.0,109170.0,0.08922]
[1756818494368,0.016,109180.0,109170.0,1.3995539]
[1756818494975,0.016,109180.0,109170.0,2.3368421]
[1756818495386,0.016,109180.0,109170.0,2.40962404]
[1756818495887,0.016,109180.0,109170.0,2.32739335]
[1756818496686,0.016,109180.0,109170.0,2.21580515]
[1756818497185,0.016,109180.0,109170.0,1.74001046]
[1756818497390,0.016,109180.0,109170.0,2.21580515]
[1756818498201,0.016,109180.0,109170.0,2.30739335]
[1756818498379,0.016,109180.0,109170.0,1.43001046]
[1756818498684,0.016,109180.0,109170.0,2.26580515]
[1756818499086,0.016,109180.0,109170.0,2.35735335]
[1756818499278,0.016,109180.0,109170.0,2.35281335]
[1756818499478,0.016,109180.0,109170.0,2.46484222]
[1756818499978,0.016,109180.0,109170.0,2.48484222]
[1756818500188,0.006,109180.0,109170.0,1.17973046]
[1756818500379,0.006,109180.0,109170.0,1.96229431]
[1756818500584,0.006,109180.0,109170.0,1.65229431]
[1756818500781,0.006,109180.0,109170.0,0.90973046]
[1756818500985,0.08959,109180.0,109170.0,0.99196101]
[1756818501289,0.006,109180.0,109170.0,1.46452486]
[1756818502085,0.006,109180.0,109170.0,1.81452486]
[1756818502780,0.006,109180.0,109170.0,0.99196101]
[1756818503387,0.006,109180.0,109170.0,1.46452486]
[1756818503888,0.05318,109180.0,109170.0,1.46452486]
[1756818504088,0.006,109180.0,109170.0,1.46452486]
[1756818505189,0.006,109180.0,109170.0,1.38229431]
[1756818505892,0.05318,109180.0,109170.0,0.90973046]
[1756818506091,0.006,109180.0,109170.0,0.99198595]
[1756818506288,0.006,109180.0,109170.0,0.90973046]
[1756818507493,0.006,109180.0,109170.0,1.00131866]
[1756818507695,0.006,109180.0,109170.0,1.31131866]
[1756818507989,0.006,109180.0,109170.0,1.58914222]
[1756818508196,0.006,109180.0,109170.0,1.51755402]
[1756818508394,0.006,109180.0,109170.0,1.71229431]
[1756818508691,0.006,109180.0,109170.0,1.23973046]
[1756818508890,0.006,109180.0,109170.0,0.92973046]
[1756818509094,0.006,109180.0,109170.0,1.40229431]
[1756818509488,0.006,109180.0,109170.0,2.04100454]
[1756818509791,0.006,109180.0,109170.0,1.67100454]
[1756818509996,0.006,109180.0,109170.0,1.6303675]
[1756818510595,0.006,109180.0,109170.0,1.2903675]
[1756818510794,0.04241,109180.0,109170.0,1.6403675]
[1756818511295,0.006,109180.0,109170.0,1.6403675]
[1756818511500,0.006,109180.0,109170.0,1.72265026]
[1756818511990,0.006,109180.0,109170.0,1.34201322]
[1756818512184,0.006,109180.0,109170.0,1.37265026]
[1756818512385,0.006,109180.0,109170.0,1.6303675]
[1756818513698,0.006,109180.0,109170.0,1.2903675]
[1756818513888,0.006,109180.0,109170.0,1.76562721]
[1756818514089,0.006,109180.0,109170.0,2.48785245]
[1756818515102,0.006,109180.0,109170.0,2.75355245]
[1756818515600,0.006,109180.0,109170.0,2.75357199]
[1756818516498,0.006,109180.0,109170.0,2.66198379]
[1756818516896,0.006,109180.0,109170.0,2.75357199]
[1756818517806,0.006,109180.0,109170.0,2.63829274]
[1756818518002,0.006,109180.0,109170.0,2.7535734]
[1756818518196,0.006,109180.0,109170.0,2.51793112]
[1756818518513,0.006,109180.0,109170.0,3.0292052]
[1756818519202,0.006,109180.0,109170.0,1.76564816]
[1756818519393,0.04247,109180.0,109170.0,2.63852816]
[1756818520098,0.04247,109180.0,109170.0,1.90789112]
[1756818520291,0.04247,109180.0,109170.0,2.63852816]
[1756818520602,0.08846,109180.0,109170.0,0.51822194]
[1756818520802,0.08846,109180.0,109170.0,0.90973046]
[1756818521000,0.08846,109180.0,109170.0,1.40106194]
[1756818521201,0.08846,109180.0,109170.0,1.5163426]
[1756818522505,0.006,109180.0,109170.0,1.5163426]
[1756818523209,0.006,109180.0,109170.0,1.79257046]
[1756818524408,0.006,109180.0,109170.0,1.90785112]
[1756818525308,0.04247,109180.0,109170.0,1.90785112]
[1756818525806,0.006,109180.0,109170.0,1.02501112]
[1756818526106,0.04247,109180.0,109170.0,1.02501112]
[1756818526502,0.08846,109180.0,109170.0,0.90973046]
[1756818526693,0.05199,109180.0,109170.0,0.90973046]
[1756818526895,0.08846,109180.0,109170.0,0.90973046]
[1756818527700,0.08846,109180.0,109170.0,0.83694852]
[1756818527903,0.08846,109180.0,109170.0,0.47614852]
[1756818528609,0.08846,109180.0,109160.0,0.53337553]
[1756818528811,0.91598273,109170.0,109160.0,0.11986066]
[1756818529008,0.93674897,109170.0,109160.0,0.13683402]
[1756818529706,0.46402624,109170.0,109160.0,0.13683402]
[1756818530296,0.46402624,109170.0,109160.0,0.05444]
[1756818530499,0.46402624,109170.0,109160.0,0.08855]
[1756818530810,0.10322624,109170.0,109160.0,0.17094402]
[1756818531309,0.10322624,109170.0,109160.0,0.08855]
[1756818531501,0.46402624,109170.0,109160.0,0.08855]
[1756818532098,0.81402624,109170.0,109160.0,0.08855]
[1756818532298,0.46402624,109170.0,109160.0,0.08697402]
[1756818532506,1.31674897,109170.0,109160.0,0.00458]
[1756818532699,1.18674897,109170.0,109160.0,0.00458]
[1756818532900,1.13594897,109170.0,109160.0,0.00458]
[1756818533108,1.49674897,109170.0,109160.0,0.00458]
[1756818533809,1.46027897,109170.0,109150.0,0.10081646]
[1756818534006,0.08246,109160.0,109150.0,0.49390096]
[1756818534207,0.11246,109160.0,109150.0,0.49232498]
[1756818534407,0.47326,109160.0,109150.0,0.45979096]
[1756818534617,0.47326,109160.0,109150.0,0.49390096]
[1756818535305,0.11246,109160.0,109150.0,0.85470096]
[1756818536101,0.05319,109160.0,109150.0,0.85470096]
[1756818536413,0.03,109160.0,109150.0,1.57742369]
[1756818536617,0.03,109160.0,109150.0,2.06169869]
[1756818536817,0.03,109160.0,109150.0,2.32739869]
[1756818537013,0.03,109160.0,109150.0,2.23579369]
[1756818537213,0.03,109160.0,109150.0,2.32739869]
[1756818537413,0.03,109160.0,109150.0,2.14409271]
[1756818537813,0.031,109160.0,109150.0,2.14409271]
[1756818538003,0.031,109160.0,109150.0,1.65981771]
[1756818538201,0.031,109160.0,109150.0,0.93709498]
[1756818538404,0.07699,109160.0,109150.0,0.93709498]
[1756818538608,0.11246,109160.0,109150.0,0.93709498]
[1756818538816,0.11246,109160.0,109150.0,0.93909498]
[1756818539303,0.03,109160.0,109150.0,0.54758646]
[1756818539817,0.05319,109160.0,109150.0,0.54758646]
[1756818540219,0.07599,109160.0,109150.0,0.54858646]